bitfinex-derivatives/quotes_ETHF0:USTF0_20250214
["timestamp","ask_amount","ask_price","bid_price","bid_amount"]
[1739560532314,2.79710085,2755.0,2754.8,1.30134]
[1739560532514,3.52282085,2755.0,2754.8,0.5756]
[1739560532714,2.79710085,2755.0,2754.8,0.5756]
[1739560532919,3.52282085,2755.0,2754.8,1.30134]
[1739560533325,0.72569,2755.1,2754.9,0.72572]
[1739560533623,0.7257,2755.0,2754.8,1.30133]
[1739560533817,0.7257,2755.1,2754.9,0.72572]
[1739560534121,4.8848,2755.3,2755.2,0.72564]
[1739560534427,40.8,2755.3,2755.2,3.93344]
[1739560536022,0.00543705,2755.8,2755.7,0.72551]
[1739560536617,6.00490085,2756.5,2755.7,0.72551]
[1739560536821,3.2078,2756.5,2756.4,0.72533]
[1739560537017,0.72539,2756.2,2755.8,3.7577]
[1739560537220,2.79710085,2756.2,2755.8,3.7577]
[1739560537522,0.72546,2755.9,2755.6,0.72553]
[1739560537723,0.72546,2755.9,2755.4,0.5706]
[1739560537724,2.79710085,2755.9,2755.4,0.5706]
[1739560537924,0.72552,2755.7,2755.4,1.29617]
[1739560538127,0.5421,2755.8,2755.4,0.57603705]
[1739560538426,0.72556,2755.6,2755.4,0.57603705]
[1739560538615,0.5421,2755.8,2755.4,0.57603705]
[1739560538815,2.79710085,2755.6,2755.4,0.00543705]
[1739560539117,0.72557,2755.5,2755.4,0.00543705]
[1739560539518,1.31397,2755.5,2755.4,0.00543705]
[1739560539825,50.18550085,2755.5,2754.5,4.3564]
[1739560540025,0.72576,2754.8,2754.6,0.72579]
[1739560540325,0.72576,2754.8,2754.5,4.3564]
[1739560540326,3.52284085,2754.9,2754.5,4.3564]
[1739560540729,3.52284085,2754.9,2754.6,0.7258]
[1739560541319,0.72576,2754.8,2754.5,4.3564]
[1739560541517,3.52284085,2754.9,2754.6,0.72579]
[1739560541916,3.52284085,2754.9,2754.5,4.3564]
[1739560541917,2.79710085,2754.9,2754.5,4.3564]
[1739560542120,2.79710085,2754.9,2754.7,0.72576]
[1739560542321,5.60949,2755.1,2754.8,0.72573]
[1739560542521,5.60949,2755.1,2754.5,4.3564]
[1739560542522,1.676,2755.1,2754.5,4.3564]
[1739560542726,3.2078,2755.4,2754.8,3.2078]
[1739560543031,40.8,2755.5,2755.4,0.72559]
[1739560545023,40.8,2755.5,2755.4,9.93339]
[1739560545927,40.8,2755.5,2755.4,3.93339]
[1739560546125,2.79710085,2756.1,2755.5,1.81392]
[1739560546321,0.00543705,2756.3,2755.7,3.2078]
[1739560546531,0.00543705,2756.3,2756.2,0.72538]
[1739560547031,40.80543705,2756.3,2756.2,0.72538]
[1739560551033,41.53080705,2756.3,2756.1,1.30529]
[1739560551727,40.80543705,2756.3,2756.2,0.72538]
[1739560551927,40.80543705,2756.3,2756.1,0.5799]
[1739560551928,41.53079705,2756.3,2756.1,1.30528]
[1739560552126,40.80543705,2756.3,2756.2,0.72538]
[1739560552529,40.80543705,2756.3,2756.0,3.21323705]
[1739560552731,40.80543705,2756.3,2756.0,0.00543705]
[1739560552930,0.72541,2756.1,2756.0,0.00543705]
[1739560553239,6.00490085,2756.1,2755.3,4.8828]
[1739560553434,0.72561,2755.4,2755.3,3.2078]
[1739560553637,0.72563,2755.3,2755.0,0.5364]
[1739560553933,40.8,2755.2,2755.1,0.72565]
[1739560559138,0.561,2755.7,2755.0,0.54987]
[1739560559438,0.561,2755.7,2755.2,3.2078]
[1739560559633,40.8,2755.6,2755.5,0.72555]
[1739560560940,41.52556,2755.6,2755.4,0.72557]
[1739560561141,41.52556,2755.6,2755.5,0.72557]
[1739560562038,40.8,2755.6,2755.5,0.72557]
[1739560563137,3.2078,2756.0,2755.5,3.2078]
[1739560563441,41.52547,2755.9,2755.8,0.72547]
[1739560563629,40.8,2755.9,2755.8,0.72547]
[1739560564935,0.00543705,2756.3,2756.2,0.72538]
[1739560565135,3.2078,2757.1,2757.0,0.72517]
[1739560565334,44.0078,2757.1,2757.0,0.72517]
[1739560565737,44.0078,2757.1,2756.7,0.5705]
[1739560565943,2.79710085,2757.0,2756.8,0.72521]
[1739560566239,40.8,2757.1,2757.0,0.72517]
[1739560567043,0.00543705,2757.2,2757.1,0.72514]
[1739560567345,40.80543705,2757.2,2756.7,0.5705]
[1739560567541,41.53056705,2757.2,2756.7,0.5705]
[1739560567840,40.80543705,2757.2,2757.0,0.72517]
[1739560568042,40.80543705,2757.2,2756.7,0.5705]
[1739560568229,40.80543705,2757.2,2757.1,0.72514]
[1739560570142,40.80543705,2757.2,2756.7,3.7783]
[1739560570343,40.80543705,2757.2,2757.1,0.72514]
[1739560571241,40.80543705,2757.2,2756.7,3.7783]
[1739560571444,40.80543705,2757.2,2757.0,0.72515]
[1739560571636,41.53055705,2757.2,2757.0,0.72515]
[1739560572344,41.53055705,2757.2,2757.1,0.72514]
[1739560572546,40.80543705,2757.2,2757.1,0.72514]
[1739560573052,0.72518,2757.0,2756.6,3.21323705]
[1739560573339,0.72517,2757.0,2756.8,0.72521]
[1739560573535,0.5621,2756.9,2756.8,0.72521]
[1739560577545,0.5913,2757.1,2757.0,0.72517]
[1739560577746,41.38233705,2757.2,2756.6,3.21323705]
[1739560577942,40.80543705,2757.2,2757.1,0.72514]
[1739560579740,0.72516,2757.1,2757.0,0.72515]
[1739560580047,0.72515,2757.1,2757.0,0.72516]
[1739560580743,40.80543705,2757.2,2756.7,1.81313]
[1739560581249,0.72516,2757.1,2757.0,0.72516]
[1739560581450,40.80543705,2757.2,2757.1,0.72514]
[1739560582245,41.53055705,2757.2,2757.1,0.72514]
[1739560582441,40.80543705,2757.2,2757.1,0.72514]
[1739560582840,41.53055705,2757.2,2757.1,0.72514]
[1739560583144,0.72515,2757.1,2757.0,0.72515]
[1739560583547,40.80543705,2757.2,2757.1,0.72514]
[1739560583951,41.53055705,2757.2,2757.1,0.72514]
[1739560584152,40.80543705,2757.2,2757.1,0.72514]
[1739560584749,41.53055705,2757.2,2757.1,0.72514]
[1739560584950,40.80543705,2757.2,2757.1,0.72514]
[1739560590047,0.00543705,2757.2,2757.1,3.52224085]
[1739560590355,15.33123568,2757.7,2757.6,0.72501]
[1739560590552,56.13123568,2757.7,2757.6,0.72501]
[1739560592655,40.8,2757.7,2757.6,0.72501]
[1739560593354,41.52499,2757.7,2757.6,0.72501]
[1739560593657,41.52499,2757.7,2757.2,1.8128]
[1739560593658,0.72511,2757.3,2757.2,0.72511]
[1739560593863,2.79710085,2757.4,2757.1,3.2078]
[1739560594058,0.72511,2757.3,2757.2,0.72511]
[1739560594950,2.79710085,2757.4,2757.1,3.2078]
[1739560595150,0.72508,2757.4,2757.3,0.72509]
[1739560595948,1.1213,2757.5,2757.3,0.72509]
[1739560596149,48.61739085,2757.7,2757.3,0.72509]
[1739560596150,44.7328,2757.7,2757.6,0.72501]
[1739560596349,44.0078,2757.7,2757.6,0.72501]
[1739560596755,44.73279,2757.7,2757.6,0.72501]
[1739560599961,0.72511,2757.3,2757.2,0.72509]
[1739560600757,2.7926,2757.6,2757.0,1.81292]
[1739560600958,0.72508,2757.5,2757.4,0.72504]
[1739560601553,0.72509,2757.4,2757.3,0.72508]
[1739560601759,2.7926,2757.6,2757.2,1.1152]
[1739560601955,1.672,2757.6,2757.5,0.72504]
[1739560602452,47.52991085,2757.7,2757.6,0.72501]
[1739560602853,0.72509,2757.4,2757.3,0.72507]
[1739560603055,0.72507,2757.5,2757.4,0.72504]
[1739560603360,0.72512,2757.3,2757.2,0.7251]
[1739560603752,0.5508,2757.4,2757.1,3.2078]
[1739560603952,1.27588,2757.4,2757.3,0.72509]
[1739560604557,0.5508,2757.4,2757.3,0.72509]
[1739560604860,1.27587,2757.4,2757.3,0.72509]
[1739560605457,0.5818,2757.5,2757.1,3.2078]
[1739560605657,0.72512,2757.3,2757.2,0.7251]
[1739560606358,0.5818,2757.5,2756.9,0.5505]
[1739560606359,0.72515,2757.2,2757.1,0.72513]
[1739560606558,2.79710085,2757.4,2756.9,0.5505]
[1739560606752,6.00490085,2757.4,2756.9,0.5505]
[1739560606953,3.2078,2757.4,2756.9,0.5505]
[1739560607153,0.72508,2757.4,2757.3,0.72507]
[1739560607555,0.72511,2757.3,2757.2,0.7251]
[1739560607957,2.2538,2757.5,2757.1,3.2078]
[1739560608156,0.72509,2757.4,2757.3,0.72507]
[1739560608764,2.2538,2757.5,2757.1,3.2078]
[1739560608956,0.72511,2757.3,2757.2,0.72509]
[1739560609363,0.72511,2757.3,2757.1,3.2078]
[1739560609364,0.72508,2757.4,2757.3,0.72507]
[1739560610156,2.39705,2757.5,2757.4,0.72507]
[1739560610361,1.672,2757.5,2757.1,3.2078]
[1739560610555,0.72509,2757.4,2757.3,0.72507]
[1739560610755,1.672,2757.5,2757.1,3.2078]
[1739560610959,0.72511,2757.3,2757.2,0.72509]
[1739560611462,0.72509,2757.4,2757.3,0.72507]
[1739560612165,1.672,2757.5,2757.1,3.2078]
[1739560612366,0.72517,2757.0,2756.9,1.27567]
[1739560612561,0.72517,2757.0,2756.9,0.5505]
[1739560612766,0.72524,2756.9,2756.8,0.72521]
[1739560613159,0.72522,2756.9,2756.8,0.7252]
[1739560613355,40.8,2756.9,2756.6,3.21323705]
[1739560613560,40.8,2756.9,2756.8,0.72522]
[1739560615668,4.46910085,2757.4,2756.8,0.72522]
[1739560615861,0.72509,2757.3,2757.2,0.72511]
[1739560616261,41.52509,2757.3,2757.2,0.72511]
[1739560616764,0.72516,2757.1,2757.0,0.72515]
[1739560617162,0.72513,2757.2,2757.1,0.72512]
[1739560617464,41.52513,2757.2,2757.1,0.72512]
[1739560618070,40.8,2757.2,2757.1,0.72512]
[1739560622174,0.73037705,2757.9,2757.8,0.72496]
[1739560622672,0.00543705,2757.9,2757.8,0.72496]
[1739560623061,40.80543705,2757.9,2757.8,0.72496]
[1739560624071,41.53036705,2757.9,2757.8,0.72496]
[1739560624667,40.80543705,2757.9,2757.6,1.6829]
[1739560624870,0.72499,2757.7,2757.6,1.108]
[1739560625175,0.72499,2757.7,2757.4,3.2078]
[1739560625176,6.00490085,2757.7,2757.2,0.5802]
[1739560625468,6.00490085,2757.7,2756.9,4.3235]
[1739560625469,2.79710085,2757.4,2756.9,4.3235]
[1739560625669,0.72517,2757.0,2756.9,4.9037]
[1739560625864,0.72517,2757.0,2756.6,0.00543705]
[1739560625865,0.72517,2757.0,2756.7,3.2078]
[1739560626061,2.79710085,2757.1,2756.6,1.70133705]
[1739560626269,40.8,2756.9,2756.8,0.72522]
[1739560626871,41.5252,2756.9,2756.7,3.2078]
[1739560627073,41.5252,2756.9,2756.8,0.72522]
[1739560627578,40.8,2756.9,2756.8,0.72522]
[1739560628775,0.5621,2757.6,2757.5,0.72504]
[1739560628968,2.39596,2757.8,2757.7,0.72499]
[1739560629171,42.471,2757.8,2757.4,1.1369]
[1739560629374,40.8,2757.8,2757.7,0.72499]
[1739560630479,0.00543705,2757.9,2757.8,0.72496]
[1739560630669,0.00543705,2757.9,2757.8,3.93276]
[1739560636283,40.8,2758.2,2758.1,0.72488]
[1739560636491,18.53903568,2758.7,2758.1,0.72488]
[1739560636492,15.33123568,2758.7,2758.6,0.72475]
[1739560636796,16.72498438,2759.5,2759.4,0.72454]
[1739560637088,16.72498438,2759.5,2759.4,3.93234]
[1739560637496,57.52498438,2759.5,2759.4,3.93234]
[1739560638290,16.72498438,2759.5,2759.4,3.93234]
[1739560638695,40.80543705,2759.7,2759.6,0.72449]
[1739560639087,0.00543705,2759.7,2759.6,0.72449]
[1739560641300,0.00543705,2759.7,2759.6,2.39449]
[1739560642001,0.00543705,2759.7,2759.6,5.88744539]
[1739560645295,0.00543705,2759.7,2759.6,2.39349]
[1739560651099,0.00543705,2759.7,2759.6,5.88644539]
[1739560654800,0.00543705,2759.7,2759.6,6.24884539]
[1739560657399,40.8,2760.2,2760.1,0.72436]
[1739560657606,1.1058,2760.5,2760.4,0.72428]
[1739560657807,1.1058,2760.5,2760.4,3.93208]
[1739560658200,41.9058,2760.5,2760.4,3.93208]
[1739560658500,1.1058,2760.5,2760.4,3.93208]
[1739560659208,0.5631,2760.5,2760.4,3.93208]
[1739560662611,0.00279128,2760.7,2760.6,0.72422]
[1739560681620,1.81064,2760.5,2760.1,3.2078]
[1739560681822,1.7387,2760.4,2759.8,4.5589184]
[1739560682122,4.9465,2760.4,2759.9,0.72441]
[1739560682422,40.8,2760.3,2759.8,3.2078]
[1739560682629,0.72434,2760.2,2760.0,0.72437]
[1739560682923,40.8,2760.3,2760.1,3.2078]
[1739560683134,40.8,2760.3,2760.2,0.72433]
[1739560684432,0.00279128,2760.7,2760.3,0.7243]
[1739560684726,0.00279128,2760.7,2760.3,3.2078]
[1739560684923,0.72699128,2760.7,2760.5,0.72424]
[1739560685426,0.72699128,2760.7,2760.0,1.8109]
[1739560685427,2.7858993,2760.6,2760.0,4.8738]
[1739560685936,0.5915,2760.5,2760.4,0.72428]
[1739560686320,0.00279128,2760.7,2760.3,3.2078]
[1739560686520,0.00279128,2760.7,2760.6,0.72422]
[1739560687123,0.00279128,2760.7,2760.6,3.93202]
[1739560687633,40.80279128,2760.7,2760.2,1.666]
[1739560687921,5.9936993,2760.6,2759.9,7.7898]
[1739560688124,0.72434,2760.2,2760.0,0.72437]
[1739560688328,1.86776,2760.1,2759.9,3.93219]
[1739560688527,1.1434,2760.1,2760.0,0.72438]
[1739560688729,1.1434,2760.1,2759.6,3.2078]
[1739560688921,0.7244,2760.0,2759.8,0.72442]
[1739560689131,1.1434,2760.1,2759.6,3.2078]
[1739560689326,1.1434,2760.1,2760.0,0.72438]
[1739560690329,0.5519,2760.1,2760.0,3.93218]
[1739560690929,0.5615,2760.4,2760.0,3.2078]
[1739560691138,1.1488,2760.4,2760.3,0.7243]
[1739560691536,5.9936993,2760.9,2760.0,3.2078]
[1739560691735,41.95159128,2760.7,2760.6,0.72422]
[1739560691935,41.95159128,2760.7,2760.6,3.93202]
[1739560692237,0.00279128,2760.7,2760.6,3.93202]
[1739560694039,0.00279128,2760.7,2760.6,3.2078]
[1739560694736,0.72699128,2760.7,2760.5,0.72424]
[1739560694936,0.00279128,2760.7,2760.6,0.72422]
[1739560695146,40.80279128,2760.7,2760.6,0.72422]
[1739560695347,0.72422,2760.6,2760.5,3.2078]
[1739560695548,0.5841,2760.6,2760.5,0.72425]
[1739560696344,1.30835,2760.6,2760.2,3.2078]
[1739560696547,0.5635,2760.5,2760.4,0.72428]
[1739560696745,0.5635,2760.5,2760.4,3.93208]
[1739560697146,40.80279128,2760.7,2760.4,3.2078]
[1739560697344,40.80279128,2760.7,2760.6,0.72422]
[1739560698447,40.80279128,2760.7,2760.5,1.88303]
[1739560698647,40.80279128,2760.7,2760.4,3.2078]
[1739560698852,1.26424,2760.6,2760.4,3.93206]
[1739560699054,0.54,2760.6,2760.4,3.2078]
[1739560699253,0.54,2760.6,2760.5,0.72425]
[1739560699651,0.54,2760.6,2760.4,3.2078]
[1739560699852,0.54,2760.6,2760.5,0.72425]
[1739560700445,40.80279128,2760.7,2760.6,0.72422]
[1739560704355,40.80279128,2760.7,2760.4,3.2078]
[1739560705054,41.52700128,2760.7,2760.5,0.72423]
[1739560705260,40.80279128,2760.7,2760.6,0.72422]
[1739560705556,41.52699128,2760.7,2760.6,0.72422]
[1739560705955,40.80279128,2760.7,2760.6,0.72422]
[1739560707857,40.80279128,2760.7,2760.6,3.93202]
[1739560710158,0.00279128,2760.7,2760.6,3.93202]
[1739560710859,40.80279128,2760.7,2760.6,3.93202]
[1739560711569,40.80279128,2760.7,2760.2,4.55922]
[1739560711570,40.80279128,2760.7,2760.5,0.72425]
[1739560711862,41.52699128,2760.7,2760.3,3.2078]
[1739560712054,40.80279128,2760.7,2760.3,3.2078]
[1739560712253,0.72422,2760.6,2760.4,0.72427]
[1739560712450,0.72425,2760.5,2760.4,0.72427]
[1739560712653,40.80279128,2760.7,2760.0,3.2078]
[1739560712859,1.185,2760.4,2760.0,4.8738]
[1739560713059,1.90928,2760.4,2760.3,0.7243]
[1739560713354,1.90928,2760.4,2759.9,1.1165]
[1739560713355,1.185,2760.4,2759.9,1.1165]
[1739560713559,0.72438,2760.0,2759.7,3.2078]
[1739560713759,2.7858993,2760.3,2759.9,0.72441]
[1739560713963,0.72435,2760.2,2760.0,0.72437]
[1739560714162,1.185,2760.4,2760.0,0.72437]
[1739560714558,5.9936993,2760.3,2759.7,3.2078]
[1739560714756,2.7858993,2760.0,2759.5,1.6836]
[1739560714959,3.93211,2760.3,2760.1,0.72434]
[1739560715162,0.72434,2760.2,2760.0,0.72436]
[1739560715455,2.85,2760.4,2759.7,5.01896]
[1739560715659,2.85,2760.4,2759.8,2.7858993]
[1739560715859,1.185,2760.4,2759.8,2.7858993]
[1739560716166,1.185,2760.4,2759.7,5.01896]
[1739560716362,1.185,2760.4,2760.3,0.7243]
[1739560717257,1.90928,2760.4,2760.2,0.72431]
[1739560717672,1.90928,2760.4,2760.3,0.7243]
[1739560717962,1.185,2760.4,2760.3,0.7243]
[1739560718161,41.52701128,2760.7,2760.3,3.2078]
[1739560718369,40.80279128,2760.7,2760.6,0.72422]
[1739560719772,40.80279128,2760.7,2760.3,3.2078]
[1739560719969,0.72424,2760.6,2760.5,0.72424]
[1739560720174,44.01059128,2760.7,2760.0,4.8839]
[1739560720565,45.82115128,2760.7,2760.1,0.72434]
[1739560720760,2.7858993,2760.6,2760.0,4.3236]
[1739560721069,5.0185,2760.4,2759.7,3.2078]
[1739560721366,1.1111,2760.3,2759.7,3.2078]
[1739560721568,1.1516,2760.3,2759.7,3.2078]
[1739560721869,0.72437,2760.1,2760.0,0.72437]
[1739560722174,1.1516,2760.3,2759.7,3.2078]
[1739560722373,0.72442,2759.9,2759.8,0.72442]
[1739560722568,2.9624,2760.3,2759.7,3.93225]
[1739560722569,0.72443,2759.8,2759.7,3.93225]
[1739560722769,0.72443,2759.8,2759.7,3.93224]
[1739560723074,2.9624,2760.3,2759.7,3.2078]
[1739560723371,0.7244,2760.0,2759.9,0.72439]
[1739560723770,0.7244,2760.0,2759.7,3.2078]
[1739560723965,0.72443,2759.8,2759.7,3.93224]
[1739560724166,0.72442,2759.9,2759.8,0.72442]
[1739560724578,40.8,2759.9,2759.8,0.72442]
[1739560724767,41.52441,2759.9,2759.8,0.72442]
[1739560726879,0.72443,2759.8,2759.7,3.2078]
[1739560727074,1.1329,2759.8,2759.3,1.28526]
[1739560727379,0.72457,2759.3,2759.2,1.86550705]
[1739560727571,0.72455,2759.4,2759.3,0.72457]
[1739560727874,0.72457,2759.3,2759.2,0.73002705]
[1739560728075,1.27937,2759.3,2759.2,0.73002705]
[1739560728265,1.27937,2759.3,2759.2,0.00543705]
[1739560728473,1.27937,2759.3,2759.2,0.73002705]
[1739560728979,1.27937,2759.3,2759.2,0.00543705]
[1739560729878,9.3406993,2759.3,2758.5,0.5754]
[1739560730075,0.72471,2758.8,2758.7,0.72472]
[1739560730475,41.52471,2758.8,2758.7,0.72472]
[1739560730878,40.8,2758.8,2758.7,0.72472]
[1739560731873,40.8,2758.8,2758.5,0.58083705]
[1739560731874,40.8,2758.8,2758.6,0.72474]
[1739560732074,0.72475,2758.7,2758.5,0.00543705]
[1739560732386,0.72475,2758.7,2758.6,0.72475]
[1739560733282,40.8,2758.8,2758.6,0.72475]
[1739560733781,0.72472,2758.7,2758.6,0.72475]
[1739560734384,41.52471,2758.8,2758.7,0.72472]
[1739560734784,0.72474,2758.7,2758.6,0.72474]
[1739560734983,40.8,2758.8,2758.5,0.00543705]
[1739560735188,41.5247,2758.8,2758.7,0.72472]
[1739560736081,40.8,2758.8,2758.5,0.00543705]
[1739560736285,0.72473,2758.7,2758.6,0.72473]
[1739560737883,40.8,2758.8,2758.7,0.72472]
[1739560738085,0.00543705,2759.0,2758.7,3.2078]
[1739560738390,0.73009705,2759.0,2758.9,0.72467]
[1739560738588,41.53009705,2759.0,2758.9,0.72467]
[1739560739286,0.72468,2758.9,2758.8,0.72468]
[1739560739485,40.80543705,2759.0,2758.7,3.2078]
[1739560739678,40.80543705,2759.0,2758.9,0.72467]
[1739560739679,41.53009705,2759.0,2758.9,0.72467]
[1739560741190,0.72469,2758.9,2758.8,0.72469]
[1739560741885,40.80543705,2759.0,2758.7,3.2078]
[1739560742090,40.80543705,2759.0,2758.9,0.72467]
[1739560742885,0.00543705,2759.0,2758.9,4.6778693]
[1739560743287,40.8,2759.5,2759.4,0.72454]
[1739560744085,41.52453,2759.5,2759.4,0.5912]
[1739560744693,0.72457,2759.3,2759.1,0.7246]
[1739560744894,40.8,2759.5,2759.1,0.72462]
[1739560745086,0.72456,2759.4,2759.2,0.72458]
[1739560745291,40.8,2759.5,2759.4,0.72454]
[1739560745497,40.8,2759.5,2759.0,3.2078]
[1739560745789,0.72457,2759.3,2759.1,0.5912]
[1739560746391,41.52452,2759.5,2759.3,0.72454]
[1739560746786,41.52452,2759.5,2759.1,1.135]
[1739560746787,40.8,2759.5,2759.1,1.135]
[1739560746987,0.72457,2759.3,2759.2,0.72458]
[1739560747184,40.8,2759.5,2759.1,1.135]
[1739560747388,0.72455,2759.4,2759.3,0.72456]
[1739560747583,40.8,2759.5,2759.1,1.135]
[1739560747782,40.8,2759.5,2759.2,0.72458]
[1739560747989,40.8,2759.5,2759.1,1.135]
[1739560748583,41.52453,2759.5,2759.2,0.72459]
[1739560748789,0.72455,2759.4,2759.3,0.72455]
[1739560749096,0.72458,2759.3,2759.2,0.72458]
[1739560749289,40.8,2759.5,2759.1,1.135]
[1739560749496,41.52454,2759.5,2759.4,0.72454]
[1739560749794,0.72457,2759.4,2759.3,0.72455]
[1739560749994,40.8,2759.5,2759.3,3.2078]
[1739560750195,40.8,2759.5,2759.4,0.72454]
[1739560750697,40.8,2759.5,2759.3,4.8728]
[1739560750898,40.8,2759.5,2759.3,1.665]
[1739560751102,0.72454,2759.4,2759.3,2.38956]
[1739560751295,40.8,2759.5,2759.3,1.665]
[1739560751486,40.8,2759.5,2759.4,0.72454]
[1739560751986,0.72454,2759.4,2759.3,5.59734]
[1739560752190,0.72454,2759.4,2759.3,5.59737]
[1739560752386,0.72454,2759.4,2759.3,2.38957]
[1739560752697,0.72457,2759.3,2759.2,0.72458]
[1739560753498,40.8,2759.5,2759.4,0.72454]
[1739560758296,0.00279128,2759.7,2759.6,0.72449]
[1739560758903,40.80279128,2759.7,2759.6,0.72449]
[1739560763898,40.80279128,2759.7,2759.6,1.28659]
[1739560764604,40.80279128,2759.7,2759.6,0.72449]
[1739560766700,0.00279128,2759.7,2759.6,0.72449]
[1739560766904,0.72439,2760.0,2759.9,0.7244]
[1739560767305,41.52439,2760.0,2759.9,0.7244]
[1739560767908,40.8,2760.0,2759.9,0.7244]
[1739560768306,1.84101,2760.3,2759.9,0.7244]
[1739560768603,1.84101,2760.3,2760.2,0.72433]
[1739560768810,42.07381,2760.3,2760.2,0.72433]
[1739560769105,42.61821,2760.3,2760.2,0.72433]
[1739560769509,42.6182,2760.3,2760.2,0.72433]
[1739560770208,41.8939,2760.3,2760.2,0.72433]
[1739560771702,41.8939,2760.3,2760.1,0.72433]
[1739560771903,0.72435,2760.2,2760.1,0.72433]
[1739560772311,1.81822,2760.3,2760.2,0.72433]
[1739560772512,42.61822,2760.3,2760.2,0.72433]
[1739560773306,41.8939,2760.3,2760.2,0.72433]
[1739560773515,42.6182,2760.3,2760.2,0.72433]
[1739560773708,0.72436,2760.2,2760.1,0.72434]
[1739560775115,0.72436,2760.1,2760.0,0.00543705]
[1739560776008,0.72436,2760.1,2760.0,0.72981705]
[1739560777007,0.72436,2760.1,2760.0,0.00543705]
[1739560777515,0.72436,2760.1,2760.0,0.72981705]
[1739560779207,0.72436,2760.1,2760.0,0.00543705]
[1739560779408,3.93216,2760.1,2760.0,0.00543705]
[1739560779812,6.7180593,2760.1,2760.0,0.00543705]
[1739560780009,12.7180593,2760.1,2760.0,0.00543705]
[1739560782309,6.7180593,2760.1,2760.0,0.00543705]
[1739560782520,12.7180593,2760.1,2760.0,0.00543705]
[1739560783217,6.7180593,2760.1,2760.0,0.00543705]
[1739560785512,12.7180593,2760.1,2760.0,0.00543705]
[1739560786817,6.7180593,2760.1,2760.0,0.00543705]
[1739560789020,5.59516,2760.1,2760.0,0.00543705]
[1739560790911,3.93216,2760.1,2760.0,0.00543705]
[1739560793615,4.50506,2760.1,2760.0,0.00543705]
[1739560794321,0.72436,2760.1,2760.0,0.00543705]
[1739560795319,3.93216,2760.1,2760.0,0.00543705]
[1739560795517,6.7180593,2760.1,2760.0,0.00543705]
[1739560796118,47.5180593,2760.1,2760.0,0.00543705]
[1739560796321,53.5180593,2760.1,2760.0,0.00543705]
[1739560796525,53.5180593,2760.1,2759.4,1.0981]
[1739560796526,0.72451,2759.5,2759.4,1.0981]
[1739560797124,0.72451,2759.5,2759.4,1.82264]
[1739560797513,41.52451,2759.5,2759.4,1.0981]
[1739560798319,41.52451,2759.5,2759.3,0.5583]
[1739560798320,40.8,2759.5,2759.3,0.5583]
[1739560798526,0.72454,2759.4,2759.3,0.5583]
[1739560799826,0.72454,2759.4,2759.3,1.28287]
[1739560800227,0.72454,2759.4,2759.3,0.5583]
[1739560800532,0.72454,2759.4,2759.3,1.28287]
[1739560801023,0.72454,2759.4,2759.3,0.5583]
[1739560801228,0.72454,2759.4,2759.3,1.28287]
[1739560804133,0.72454,2759.4,2759.3,0.5583]
[1739560804434,0.72454,2759.4,2759.3,1.28287]
[1739560805734,0.72454,2759.4,2759.3,0.5583]
[1739560806133,0.72457,2759.3,2759.2,0.00543705]
[1739560806334,1.31397,2759.3,2759.2,0.00543705]
[1739560809235,0.7247,2758.8,2758.5,0.5859]
[1739560809441,0.72475,2758.6,2758.5,0.5859]
[1739560809651,0.72475,2758.6,2758.5,1.31068]
[1739560809845,41.52475,2758.6,2758.5,1.31068]
[1739560810039,41.52475,2758.6,2758.5,0.5859]
[1739560810538,41.52475,2758.6,2758.5,1.31068]
[1739560811545,41.52475,2758.6,2758.5,0.5859]
[1739560811745,41.52475,2758.6,2758.5,1.31068]
[1739560812347,41.52475,2758.6,2758.5,0.5859]
[1739560814452,40.8,2758.6,2758.4,1.1244]
[1739560814656,0.72478,2758.5,2758.4,1.1244]
[1739560815156,0.72478,2758.5,2758.4,0.5356]
[1739560815157,1.31478,2758.5,2758.4,0.5356]
[1739560816352,0.72478,2758.5,2758.4,0.5356]
[1739560817554,0.7248,2758.4,2758.3,0.00543705]
[1739560817850,1.284,2758.4,2758.3,0.00543705]
[1739560818757,0.7248,2758.4,2758.3,0.00543705]
[1739560819050,0.7248,2758.4,2758.3,0.73026705]
[1739560820455,0.7248,2758.4,2758.3,0.00543705]
[1739560820656,0.7248,2758.5,2758.4,0.72478]
[1739560821059,40.8,2758.6,2758.3,0.00543705]
[1739560821257,0.7248,2758.4,2758.3,0.00543705]
[1739560821754,0.7248,2758.4,2758.3,0.73026705]
[1739560822150,0.7248,2758.4,2758.3,0.00543705]
[1739560822345,0.7248,2758.4,2758.3,0.73026705]
[1739560823155,0.7248,2758.4,2758.3,0.00543705]
[1739560823357,0.72499,2757.8,2757.7,0.72496]
[1739560823655,0.72499,2757.8,2757.7,1.31296]
[1739560823858,41.52499,2757.8,2757.7,1.31296]
[1739560824256,40.8,2757.8,2757.7,1.31296]
[1739560825357,0.00543705,2758.0,2757.9,0.72493]
[1739560825659,2.946,2758.2,2758.1,0.72488]
[1739560826960,2.946,2758.2,2757.7,0.588]
[1739560827159,0.72489,2758.1,2758.0,0.72488]
[1739560827359,2.946,2758.2,2757.7,0.588]
[1739560827562,0.7249,2758.1,2758.0,0.72488]
[1739560828255,2.946,2758.2,2757.7,0.588]
[1739560828558,43.16357705,2758.4,2757.8,0.72494]
[1739560828559,0.72494,2757.9,2757.8,0.72494]
[1739560828855,0.72496,2757.8,2757.7,0.588]
[1739560829060,0.72496,2757.8,2757.7,1.31299]
[1739560829356,1.1488,2758.0,2757.7,0.588]
[1739560829561,0.72496,2757.8,2757.7,1.31296]
[1739560829954,1.1488,2758.0,2757.7,0.588]
[1739560830256,0.72499,2757.7,2757.6,0.5656]